Cogmind - Beta 13 @@@ ROGUE MODE // 2024.04.05 @ 22:50:59 Player: _An Result: Core destroyed Performance ------------- Evolutions (5) 2500 Regions Visited (17) 3400 Robots Destroyed (26) 130 Value Destroyed (1472) 1472 Prototype IDs (30) 600 Alien Tech Used (0) 0 Bonus (1614) 1614 TOTAL SCORE: 9716 Bonus ------- Follower Combat Kills 55 Entered Garrisons 400 Used RIF Installer 1000 Aligned with FarCom 300 Friendly Fire -141 Cogmind --------- Core Integrity 0/1000 Matter 265/300 Energy 125/125 System Corruption 0% Temperature Cool (0) Movement Hovering (60) Location -5/Hub_04(d) Parts ------- > --- POWER (1) -------- Light Ion Engine > --- PROPULSION (4) --- Armored Medium Treads Linear Gravjet > --- UTILITY (10) ----- Improved Targeting Computer Hacking Suite Hacking Suite Improved Hacking Suite System Shield System Shield Relay Coupler [Swarmer] (9) > --- WEAPON (2) ------- Improved Datajack > --- INVENTORY (5) ---- Remote Datajack Peak State ------------ > --- POWER ------------ Light Nuclear Core > --- PROPULSION ------- Xenon Bombardment Thruster Xenon Bombardment Thruster Xenon Bombardment Thruster Cooled VTOL Module > --- UTILITY ---------- Structural Scanner Hacking Suite Hacking Suite Hacking Suite Relay Coupler [NC] Relay Coupler [Swarmer] Relay Coupler [Grunt] Relay Coupler [Sentry] > --- WEAPON ----------- Molecular Deconstructor > --- INVENTORY -------- Xenon Bombardment Thruster System Shield System Guard Greatsword [Rating: 61] Favorites ----------- Power Light Nuclear Core Engine Light Ion Engine Power Core Light Nuclear Core Reactor Micro Antimatter Reactor Propulsion Improved Flight Unit Treads Armored Medium Treads Leg Carbon-fiber Leg Hover Unit Improved Gravmag System Flight Unit Improved Flight Unit Utility Hacking Suite Device Structural Scanner Storage Small Storage Unit Processor Visual Processing Unit Hackware Hacking Suite Protection Hardened Light Armor Plating Weapon Remote Datajack Energy Gun Backup Laser III Energy Cannon YOLO Cannon Ballistic Gun Light Assault Rifle Special Weapon Remote Datajack Impact Weapon Great Maul Slashing Weapon Power Sword Special Melee Weapon Improved Datajack Build | -11 -10 -10 -10 -9 -8 -8 -8 -7 -7 -6 -6 -6 -5 -5 -5 -5 -5 ------- Run | Yrd Mat Min Exi Min Mat Gar Mat Fac Gar Fac Low Low Fac Ext Cet Arc Hub Slots Evolved 10 | . . . . . 4 . . 2 . 2 . . 2 . . . . Power . | . . . . . . . . . . . . . . . . . . Propulsion 2 | . . . . . 2 . . . . . . . . . . . . Utility 8 | . . . . . 2 . . 2 . 2 . . 2 . . . . Weapon . | . . . . . . . . . . . . . . . . . . Parts Attached 95 | 5 6 . . . 10 7 6 11 4 17 . 4 6 16 . 1 2 Power 13 | 1 1 . . . 1 1 2 2 . 1 . . 2 1 . . 1 Engine 6 | 1 1 . . . . . 1 . . . . . 1 1 . . 1 Core 6 | . . . . . 1 1 1 2 . 1 . . . . . . . Reactor 1 | . . . . . . . . . . . . . 1 . . . . Propulsion 31 | 2 2 . . . 3 . 2 5 . 8 . 1 1 7 . . . Treads 1 | . . . . . . . . . . . . . . 1 . . . Leg 5 | 2 . . . . . . . . . . . . . 3 . . . Wheel . | . . . . . . . . . . . . . . . . . . Hover 2 | . . . . . . . . . . . . . . 2 . . . Flight 23 | . 2 . . . 3 . 2 5 . 8 . 1 1 1 . . . Utility 28 | . 3 . . . 2 4 1 2 2 6 . . 2 5 . . 1 Device 4 | . 1 . . . . . . . . 3 . . . . . . . Storage 1 | . . . . . 1 . . . . . . . . . . . . Processor 6 | . 2 . . . . 1 . . . 2 . . . . . . 1 Hackware 12 | . . . . . . 2 . 2 2 1 . . 2 3 . . . Protection 5 | . . . . . 1 1 1 . . . . . . 2 . . . Artifact . | . . . . . . . . . . . . . . . . . . Weapon 23 | 2 . . . . 4 2 1 2 2 2 . 3 1 3 . 1 . Energy Gun . | . . . . . . . . . . . . . . . . . . Energy Cannon 3 | . . . . . 2 . . . 1 . . . . . . . . Ballistic Gun 6 | 2 . . . . 2 2 . . . . . . . . . . . Ballistic Cannon . | . . . . . . . . . . . . . . . . . . Launcher . | . . . . . . . . . . . . . . . . . . Special Weapon 5 | . . . . . . . . 1 . 1 . 2 1 . . . . Impact Weapon 3 | . . . . . . . 1 1 1 . . . . . . . . Slashing Weapon 4 | . . . . . . . . . . 1 . 1 . 2 . . . Piercing Weapon . | . . . . . . . . . . . . . . . . . . Special Melee Weapon 2 | . . . . . . . . . . . . . . 1 . 1 . Unidentified Prototypes 5 | . 1 . . . . . . 2 . 1 . 1 . . . . . Parts Lost 31 | . 1 . . . . . 6 . 1 . . 3 . 15 2 3 . Power 6 | . 1 . . . . . 2 . . . . 1 . 2 . . . Propulsion 13 | . . . . . . . 3 . . . . 1 . 8 1 . . Utility 8 | . . . . . . . . . 1 . . 1 . 2 1 3 . Weapon 4 | . . . . . . . 1 . . . . . . 3 . . . Highest Loss Streak 7 | . 1 . . . . . 4 . 1 . . 3 . 7 2 3 . To Critical Strikes 1 | . . . . . . . 1 . . . . . . . . . . Average Slot Usage (%) 86 | . 91 100 100 100 97 89 84 67 86 98 100 99 91 75 69 62 58 Engine 1 | . 14 14 14 14 3 . . . . . . . 1 . . . 3 Core 4 | . . . . . 5 9 7 7 7 6 6 5 . . . . . Leg 1 | . 7 . . . . . . . . . . . . 7 . . . Flight 24 | . 20 28 28 28 35 36 33 26 30 26 26 26 23 5 . . . Device 3 | . 1 14 14 14 9 2 . . . 5 6 6 5 1 . . . Storage 3 | . . . . . 8 9 9 7 1 . . . . . . . . Processor 2 | . 18 14 14 14 9 6 . . . . . . . . . . 1 Hackware 28 | . . . . . . 13 18 16 37 45 46 46 46 47 49 43 35 Protection 2 | . . . . . 9 5 7 . . . . . . . 5 1 . Ballistic Gun 5 | . 28 28 28 28 15 8 7 . . . . . . . . . . Special Weapon 2 | . . . . . . . . 1 1 5 6 6 4 1 . . . Impact Weapon 1 | . . . . . . . . 3 5 4 . . . . . . . Slashing Weapon 1 | . . . . . . . . . . 1 6 6 5 3 . . . Naked Turns . | . . . . . . . . . . . . . . . . . . Heaviest Build 23 | 5 8 8 8 8 20 21 19 17 23 13 12 12 15 15 7 8 4 Greatest Support 27 | 20 20 10 10 10 20 20 20 24 24 24 23 23 26 27 19 9 9 Greatest Overweight (x) 2 | . . . . . . 1 1 1 . . . . 1 2 . . . Average Overweight (x) . | . . . . . . . . . . . . . . . . . . Largest Inventory Capacity 8 | 5 5 5 5 5 8 8 8 8 8 5 5 5 5 5 5 5 5 Average Capacity 6 | 5 5 5 5 5 7 8 8 8 5 5 5 5 5 5 5 5 5 Most Carried 8 | 2 5 3 5 5 8 8 8 8 6 5 5 5 4 5 3 3 2 Average Carried 5 | . 3 3 4 5 7 7 7 7 4 4 5 4 3 3 3 2 1 Final Capacity 8 | 5 5 5 5 5 8 8 8 8 5 5 5 5 5 5 5 5 5 Final Carried 8 | 2 3 3 5 5 8 8 8 5 5 5 5 4 4 3 3 2 1 Class Distribution -------------------- 50% | Hacker-Sprinter 21% | Hacker-Mutant 12% | Scout 7% | Mutant 7% | Wizard-Mutant Dominant Class ---------------- Mutant | -10/Materials Mutant | -10/Mines Mutant | -10/Exiles Mutant | -9/Mines Scout | -8/Materials Hacker-Sprinter | -8/Garrison Hacker-Sprinter | -8/Materials Hacker-Mutant | -7/Factory Hacker-Sprinter | -7/Garrison Hacker-Sprinter | -6/Factory Hacker-Sprinter | -6/Lower Caves Hacker-Sprinter | -6/Lower Caves Hacker-Sprinter | -5/Factory Wizard-Mutant | -5/Extension Wizard-Mutant | -5/Cetus Hacker-Mutant | -5/Archives Hacker-Mutant | -5/Hub_04(d) Resources | -11 -10 -10 -10 -9 -8 -8 -8 -7 -7 -6 -6 -6 -5 -5 -5 -5 -5 ----------- Run | Yrd Mat Min Exi Min Mat Gar Mat Fac Gar Fac Low Low Fac Ext Cet Arc Hub Matter Collected 1246 | 165 156 . . . . . 21 147 14 267 93 122 105 156 . . . Remotely . | . . . . . . . . . . . . . . . . . . Salvage Created 818 | . 210 . . . 42 . 44 101 14 267 . . 94 46 . . . Parts 43 | . 18 . . . 3 . 4 8 . 2 . . 4 4 . . . Haulers Intercepted 1 | . . . . . . . . . . 1 . . . . . . . Recyclers Shooed . | . . . . . . . . . . . . . . . . . . Parts Field Recycled . | . . . . . . . . . . . . . . . . . . Retrieved Matter . | . . . . . . . . . . . . . . . . . . Parts Self-Destructed . | . . . . . . . . . . . . . . . . . . Prevented . | . . . . . . . . . . . . . . . . . . Kills | -11 -10 -10 -10 -9 -8 -8 -8 -7 -7 -6 -6 -6 -5 -5 -5 -5 -5 ------- Run | Yrd Mat Min Exi Min Mat Gar Mat Fac Gar Fac Low Low Fac Ext Cet Arc Hub Combat Hostiles Destroyed 15 | . 7 . . . 1 . 4 1 1 . . . 1 . . . . Melee 4 | . . . . . . . 3 . . . . . 1 . . . . Guns 7 | . 7 . . . . . . . . . . . . . . . . Cannons 1 | . . . . . 1 . . . . . . . . . . . . AOE 1 | . . . . . . . . . 1 . . . . . . . . Classes Destroyed 12 | . 2 . . . 1 . . 4 1 2 . . 2 . . . . Builder 1 | . . . . . . . . 1 . . . . . . . . . Tunneler 1 | . . . . . . . . . . . . . 1 . . . . Hauler 1 | . . . . . . . . . . 1 . . . . . . . Recycler 1 | . . . . . . . . . . 1 . . . . . . . Mechanic 1 | . . . . . . . . . . . . . 1 . . . . Operator 5 | . . . . . . . . 1 . 2 . . . 2 . . . Watcher 1 | . . . . . . . . 1 . . . . . . . . . Swarmer 8 | . 3 . . . . . 4 . . . . . 1 . . . . Grunt 4 | . 4 . . . . . . . . . . . . . . . . Sentry 1 | . . . . . 1 . . . . . . . . . . . . Hunter 1 | . . . . . . . . . 1 . . . . . . . . Programmer 1 | . . . . . . . . 1 . . . . . . . . . Best Kill Streak 4 | . 3 . . . 1 . 4 1 1 2 . . 1 1 . . . Combat Bots Only 4 | . 3 . . . 1 . 4 1 1 . . . 1 . . . . Max Kills in Single Turn 1 | . 1 . . . 1 . 1 1 1 1 . . 1 1 . . . Gunslinging . | . . . . . . . . . . . . . . . . . . Exploded 1 | . . . . . . . . . 1 . . . . . . . . Melee 1 | . . . . . . . 1 . . . . . 1 . . . . Uniques/NPCs Destroyed . | . . . . . . . . . . . . . . . . . . Combat | -11 -10 -10 -10 -9 -8 -8 -8 -7 -7 -6 -6 -6 -5 -5 -5 -5 -5 -------- Run | Yrd Mat Min Exi Min Mat Gar Mat Fac Gar Fac Low Low Fac Ext Cet Arc Hub Hostile Shots Fired 543 | . 37 . . . 9 . 154 72 16 29 6 41 17 122 22 17 1 Missed 261 | . 11 . . . 5 . 79 43 6 19 4 19 4 51 14 6 . Damage Taken 4551 | . 277 . . . 66 . 805 325 172 159 47 309 194 1628 231 299 39 Core 1767 | . 80 . . . 38 . 176 109 73 113 25 139 67 765 86 58 38 Absorbed by Shields 33 | . . . . . . . . . 33 . . . . . . . . Regen/Repaired (Parts) 69 | . . . . . . . . . . . . . 69 . . . . Core Remaining (%) 74 | 100 . . . 68 . . 61 . 74 . . 67 . . . . . Volleys Fired 106 | . 32 . . . 4 14 6 8 4 9 . 2 19 8 . . . Largest 2 | . 2 . . . 2 1 1 2 1 1 . 1 1 1 . . . Hottest 100 | . 40 . . . 100 28 28 80 100 5 . 5 5 5 . . . Shots Fired 143 | . 64 . . . 6 14 6 11 4 9 . 2 19 8 . . . Gun 94 | . 64 . . . 4 14 6 6 . . . . . . . . . Cannon 6 | . . . . . 2 . . . 4 . . . . . . . . Launcher . | . . . . . . . . . . . . . . . . . . Special 43 | . . . . . . . . 5 . 9 . 2 19 8 . . . Kinetic 88 | . 64 . . . 4 14 6 . . . . . . . . . . Thermal 12 | . . . . . 2 . . 6 4 . . . . . . . . Explosive . | . . . . . . . . . . . . . . . . . . Electromagnetic . | . . . . . . . . . . . . . . . . . . Robot Hit Streak 10 | . 10 . . . 3 . . 5 1 3 . . 4 3 . . . Robot Miss Streak 4 | . 4 . . . . . . 2 2 2 . . 3 4 . . . Penetration Max . | . . . . . . . . . . . . . . . . . . Secondary Targets 1 | . 1 . . . . . . . . . . . . . . . . Max Gunslinging Chain 1 | . 1 . . . . . . . . . . . . . . . . Shots Hit Robots 96 | . 34 . . . 2 . 4 13 1 9 . . 17 11 . 2 3 Core Hits 29 | . 16 . . . 2 . 1 1 2 . . . 3 4 . . . Critical Kills . | . . . . . . . . . . . . . . . . . . Critical Parts Destroyed 8 | . . . . . . . 3 3 . 2 . . . . . . . Critical Strikes 8 | . . . . . . . 3 3 . 2 . . . . . . . Smash 8 | . . . . . . . 3 3 . 2 . . . . . . . Melee Attacks 89 | . . . . . . . 7 13 10 24 . 6 15 9 . 2 3 Impact 48 | . . . . . . . 7 13 10 18 . . . . . . . Slashing 33 | . . . . . . . . . . 6 . 6 15 6 . . . Piercing . | . . . . . . . . . . . . . . . . . . Sneak Attacks 14 | . . . . . . . . . . 3 . . 2 4 . 2 3 Combat Hostiles 2 | . . . . . . . . . . . . . . 2 . . . Follow-up Attacks . | . . . . . . . . . . . . . . . . . . Damage Inflicted 2608 | . 265 . . . 291 . 166 357 291 444 . . 377 414 . . 3 Guns 310 | . 265 . . . 19 . . 26 . . . . . . . . . Cannons 265 | . . . . . 150 . . . 115 . . . . . . . . Explosions 378 | . . . . . 122 . . . 176 . . . . 80 . . . Melee 1652 | . . . . . . . 166 331 . 444 . . 377 334 . . . Ramming 3 | . . . . . . . . . . . . . . . . . 3 Kinetic 284 | . 265 . . . 19 . . . . . . . . . . . . Thermal 669 | . . . . . 272 . . 26 291 . . . . 80 . . . Explosive . | . . . . . . . . . . . . . . . . . . Electromagnetic . | . . . . . . . . . . . . . . . . . . Impact 941 | . . . . . . . 166 331 . 444 . . . . . . . Slashing 711 | . . . . . . . . . . . . . 377 334 . . . Piercing . | . . . . . . . . . . . . . . . . . . Highest Corruption 3 | . . . . . . . . 3 3 . . . . . . . . Average Corruption 2 | . . . . . . . . 2 3 . . . . . . . . Corruption Purged . | . . . . . . . . . . . . . . . . . . Corruption Blocked . | . . . . . . . . . . . . . . . . . . Effects 5 | . . . . . . . . 2 3 . . . . . . . . Message Errors 3 | . . . . . . . . 1 2 . . . . . . . . Matter Fused 1 | . . . . . . . . . 1 . . . . . . . . Heat Flow Errors 1 | . . . . . . . . 1 . . . . . . . . . Overload Shots . | . . . . . . . . . . . . . . . . . . Overflow Damage 949 | . . . . . 47 . 130 187 65 235 . . 95 190 . . . Projectiles 65 | . . . . . . . . . 65 . . . . . . . . Explosions 118 | . . . . . 47 . . . . . . . . 71 . . . Melee 766 | . . . . . . . 130 187 . 235 . . 95 119 . . . Knockbacks 3 | . . . . . . . . 2 . 1 . . . . . . . Impact 3 | . . . . . . . . 2 . 1 . . . . . . . Kinetic . | . . . . . . . . . . . . . . . . . . Secondary . | . . . . . . . . . . . . . . . . . . Self-Inflicted Damage 263 | . . . . . . . . . 65 . . . . 197 . . 1 Shots 3 | . . . . . . . . . 1 . . . . 2 . . . Rammed 1 | . . . . . . . . . . . . . . . . . 1 Targets Rammed 1 | . . . . . . . . . . . . . . . . . 1 Kicked . | . . . . . . . . . . . . . . . . . . Crushed . | . . . . . . . . . . . . . . . . . . Highest Temperature 227 | . 20 . . . 40 7 10 227 87 . . . . 15 . . . Average Temperature 24 | . 8 . . . 9 1 2 119 39 . . . . 15 . . . Received Heat Transfer 798 | . 111 . . . 18 . 117 12 . 39 . . 9 402 36 45 9 Siege Activations . | . . . . . . . . . . . . . . . . . . Robots Corrupted . | . . . . . . . . . . . . . . . . . . Combat Hostiles . | . . . . . . . . . . . . . . . . . . Parts Fried 10 | . . . . . . . 1 3 . 6 . . . . . . . Impact Corruptions 20 | . . . . . . . 4 8 . 8 . . . . . . . Robots Melted . | . . . . . . . . . . . . . . . . . . Combat Hostiles . | . . . . . . . . . . . . . . . . . . Parts Melted . | . . . . . . . . . . . . . . . . . . Heat Transferred 694 | . . . . . 240 . . 74 280 . . . . 100 . . . Parts Sabotaged . | . . . . . . . . . . . . . . . . . . Parts Stolen . | . . . . . . . . . . . . . . . . . . Parts Stripped . | . . . . . . . . . . . . . . . . . . Power Chain Reactions . | . . . . . . . . . . . . . . . . . . Alert | -11 -10 -10 -10 -9 -8 -8 -8 -7 -7 -6 -6 -6 -5 -5 -5 -5 -5 ------- Run | Yrd Mat Min Exi Min Mat Gar Mat Fac Gar Fac Low Low Fac Ext Cet Arc Hub Peak Influence 533 | . 190 73 . . 164 388 460 293 259 220 . . 230 533 116 90 90 Initial 209 | . . 73 . . . 106 189 209 58 135 . . 38 81 116 40 24 Average 148 | . 91 73 . . 37 241 184 209 148 141 . . 108 240 103 55 40 Maximum Alert Level 2 | . . . . . . 1 2 1 1 1 . . 1 2 . . . Low Security (%) 75 | 100 100 100 . 100 100 17 83 22 73 98 . . 87 55 100 100 100 Level 1 21 | . . . . . . 82 11 77 26 1 . . 12 26 . . . Level 2 2 | . . . . . . . 5 . . . . . . 17 . . . Level 3 . | . . . . . . . . . . . . . . . . . . Level 4 . | . . . . . . . . . . . . . . . . . . Level 5 . | . . . . . . . . . . . . . . . . . . High Security . | . . . . . . . . . . . . . . . . . . Max Security . | . . . . . . . . . . . . . . . . . . Squads Dispatched 19 | . 2 . . . 2 . 2 6 . 2 . . 1 1 . . 3 Investigation 9 | . 1 . . . . . 1 4 . 1 . . 1 . . . 1 Extermination 1 | . . . . . . . . 1 . . . . . . . . . Reinforcement 8 | . 1 . . . 1 . 1 1 . 1 . . . 1 . . 2 Assault . | . . . . . . . . . . . . . . . . . . Garrison 1 | . . . . . 1 . . . . . . . . . . . . Intercept . | . . . . . . . . . . . . . . . . . . Searches Triggered 1 | . . . . . . . . . . . . . . 1 . . . Construction Impeded 1 | . . . . . . . . 1 . . . . . . . . . Haulers Reinforced . | . . . . . . . . . . . . . . . . . . Active Scanning Responses . | . . . . . . . . . . . . . . . . . . Cargo Convoy Interrupts . | . . . . . . . . . . . . . . . . . . Alert ID Control Effect 1 | . . . . . . . . . . . . . 1 . . . . Stealth | -11 -10 -10 -10 -9 -8 -8 -8 -7 -7 -6 -6 -6 -5 -5 -5 -5 -5 --------- Run | Yrd Mat Min Exi Min Mat Gar Mat Fac Gar Fac Low Low Fac Ext Cet Arc Hub Distress Signals 16 | . 1 . . . 1 . 2 2 . 2 . . 1 3 1 . 3 Communications Jammed . | . . . . . . . . . . . . . . . . . . Distress Signals . | . . . . . . . . . . . . . . . . . . Times Spotted 173 | . 9 . . . 14 . 48 12 1 14 1 12 18 26 5 4 9 Peak Tracking Total 21 | . 4 . . . 11 . 21 6 1 5 1 10 6 11 5 4 7 Tactical Retreats 24 | . . . . . 1 . 7 1 . 2 1 1 4 6 . . 1 Traps | -11 -10 -10 -10 -9 -8 -8 -8 -7 -7 -6 -6 -6 -5 -5 -5 -5 -5 ------- Run | Yrd Mat Min Exi Min Mat Gar Mat Fac Gar Fac Low Low Fac Ext Cet Arc Hub Traps Triggered 6 | . 1 . . . . . . 1 2 1 . . 1 . . . . Indirectly . | . . . . . . . . . . . . . . . . . . Trap Hack Attempts . | . . . . . . . . . . . . . . . . . . Triggered . | . . . . . . . . . . . . . . . . . . Disarmed . | . . . . . . . . . . . . . . . . . . Reprogrammed 4 | . . . . . . . . . . . . . 4 . . . . Reused 1 | . . . . . . . . . . . . . 1 . . . . Traps Extracted . | . . . . . . . . . . . . . . . . . . Installed . | . . . . . . . . . . . . . . . . . . Triggered 1 | . . . . . . . . . . . . . 1 . . . . Machines | -11 -10 -10 -10 -9 -8 -8 -8 -7 -7 -6 -6 -6 -5 -5 -5 -5 -5 ---------- Run | Yrd Mat Min Exi Min Mat Gar Mat Fac Gar Fac Low Low Fac Ext Cet Arc Hub Machines Disabled 13 | . . . . . 1 4 . . 6 . . . . 2 . . . Max in Single Turn 2 | . . . . . 1 1 . . 1 . . . . 2 . . . Garrison Access 2 | . . . . . . . . 1 . 1 . . . . . . . Garrison Relay 4 | . . . . . . 3 . . 1 . . . . . . . . Energy Cycler 3 | . . . . . . . . . . . . . . 3 . . . Machines Repaired . | . . . . . . . . . . . . . . . . . . Machines Dismantled . | . . . . . . . . . . . . . . . . . . Machines Sabotaged . | . . . . . . . . . . . . . . . . . . Overloaded Fab Kills . | . . . . . . . . . . . . . . . . . . Hacking | -11 -10 -10 -10 -9 -8 -8 -8 -7 -7 -6 -6 -6 -5 -5 -5 -5 -5 --------- Run | Yrd Mat Min Exi Min Mat Gar Mat Fac Gar Fac Low Low Fac Ext Cet Arc Hub Machines Accessed 66 | . 3 . 1 . 4 3 9 12 1 14 . . 8 6 1 . 4 Terminals 50 | . 3 . . . 3 3 8 8 1 9 . . 4 6 1 . 4 Fabricators 2 | . . . . . . . . . . 1 . . 1 . . . . Repair Stations 4 | . . . . . . . . 1 . 1 . . 2 . . . . Recycling Units 4 | . . . . . . . 1 1 . 1 . . 1 . . . . Scanalyzers . | . . . . . . . . . . . . . . . . . . Garrison Access 5 | . . . . . 1 . . 2 . 2 . . . . . . . Total Hacks 149 | . 7 . 1 . 10 4 23 23 2 26 . . 21 15 3 . 14 Successful 69 | . . . 1 . 2 3 14 12 1 14 . . 8 6 1 . 7 Failed 80 | . 7 . . . 8 1 9 11 1 12 . . 13 9 2 . 7 Catastrophic 13 | . 3 . . . 1 . 1 3 . 1 . . 2 1 . . 1 Database Lockouts . | . . . . . . . . . . . . . . . . . . Manual 70 | . 7 . 1 . 7 . 12 14 . 10 . 1 4 7 . . 7 Terminals 119 | . 7 . . . 9 4 20 17 2 17 . . 11 15 3 . 14 Fabricators 2 | . . . . . . . . . . 1 . . 1 . . . . Repair Stations 9 | . . . . . . . . 1 . 2 . . 6 . . . . Recycling Units 12 | . . . . . . . 3 3 . 3 . . 3 . . . . Scanalyzers . | . . . . . . . . . . . . . . . . . . Garrison Access 6 | . . . . . 1 . . 2 . 3 . . . . . . . Terminal Hacks 43 | . . . 1 . 1 3 11 6 1 4 . . 2 6 1 . 7 Prototype ID Bank 1 | . . . . . 1 . . . . . . . . . . . . Open Door 3 | . . . . . . . . . . . . . . 2 1 . . Open DSF 1 | . . . . . . . . 1 . . . . . . . . . Level Access Points 1 | . . . . . . . . . . . . . . . . . 1 Branch Access Points 3 | . . . . . . . 1 . . 1 . . . . . . 1 Emergency Access Points 4 | . . . . . . 1 . . . . . . . . . . 3 Terminal Index 3 | . . . . . . . 1 1 . . . . . . . . 1 Recycling Unit Index 2 | . . . . . . . 1 1 . . . . . . . . . Unreport Threat 4 | . . . . . . . 1 1 . . . . . 2 . . . Locate Traps 1 | . . . . . . . . . . 1 . . . . . . . Reprogram Traps 1 | . . . . . . . . . . . . . 1 . . . . Dispatch Records 1 | . . . . . . . . . . . . . . . . . 1 Security Status 1 | . . . . . . . 1 . . . . . . . . . . Recall Investigation 1 | . . . . . . . 1 . . . . . . . . . . Recall Extermination 1 | . . . . . . . . 1 . . . . . . . . . Recall Reinforcements 1 | . . . . . . . 1 . . . . . . . . . . Recall Assault 1 | . . . . . . . 1 . . . . . . . . . . Hauler Manifests 1 | . . . . . . . 1 . . . . . . . . . . Registered Components 4 | . . . . . . . 1 . . 1 . . 1 1 . . . Zone Layout 4 | . . . . . . . 1 1 . 1 . . . 1 . . . Patrol Navigation 1 | . . . . . . 1 . . . . . . . . . . . Security Stations 2 | . . . . . . 1 . . 1 . . . . . . . . Derelict Proto ID Bank 1 | . . . 1 . . . . . . . . . . . . . . Fabricator Hacks 2 | . . . . . . . . . . 1 . . 1 . . . . Network Status 2 | . . . . . . . . . . 1 . . 1 . . . . Repair Station Hacks 5 | . . . . . . . . 1 . 1 . . 3 . . . . Scan Component 3 | . . . . . . . . . . 1 . . 2 . . . . Repair 1 | . . . . . . . . . . . . . 1 . . . . Refit 1 | . . . . . . . . 1 . . . . . . . . . Recycling Unit Hacks 9 | . . . . . . . 3 3 . 2 . . 1 . . . . Process 2 | . . . . . . . 1 1 . . . . . . . . . Report Inventory 2 | . . . . . . . . . . 1 . . 1 . . . . Retrieve Matter 5 | . . . . . . . 2 2 . 1 . . . . . . . Scanalyzer . | . . . . . . . . . . . . . . . . . . Garrison Access Hacks 6 | . . . . . 1 . . 2 . 3 . . . . . . . Unlock Access 2 | . . . . . 1 . . 1 . . . . . . . . . Seal Access 2 | . . . . . . . . 1 . 1 . . . . . . . Coupler Status 2 | . . . . . . . . . . 2 . . . . . . . Unauthorized Hacks 4 | . . . . . . . . . . 3 . . 1 . . . . Terminals 4 | . . . . . . . . . . 3 . . 1 . . . . Assimilate 2 | . . . . . . . . . . 2 . . . . . . . Operators 2 | . . . . . . . . . . 1 . . 1 . . . . Fabricators . | . . . . . . . . . . . . . . . . . . Repair Stations . | . . . . . . . . . . . . . . . . . . Recycling Units . | . . . . . . . . . . . . . . . . . . Scanalyzers . | . . . . . . . . . . . . . . . . . . Garrison Access . | . . . . . . . . . . . . . . . . . . Data Cores Recovered . | . . . . . . . . . . . . . . . . . . Used . | . . . . . . . . . . . . . . . . . . Hacking Detections 48 | . 3 . . . 4 1 7 8 1 10 . . 5 5 . . 4 Full Trace Events 9 | . 1 . . . 1 . 1 3 . 1 . . 1 . . . 1 Feedback Events . | . . . . . . . . . . . . . . . . . . Feedback Blocked . | . . . . . . . . . . . . . . . . . . Robot Schematics Acquired . | . . . . . . . . . . . . . . . . . . Robots Built . | . . . . . . . . . . . . . . . . . . Authchips . | . . . . . . . . . . . . . . . . . . Time . | . . . . . . . . . . . . . . . . . . Total Robot Build Rating . | . . . . . . . . . . . . . . . . . . Part Schematics Acquired . | . . . . . . . . . . . . . . . . . . Parts Built . | . . . . . . . . . . . . . . . . . . Authchips . | . . . . . . . . . . . . . . . . . . Time . | . . . . . . . . . . . . . . . . . . Total Part Build Rating . | . . . . . . . . . . . . . . . . . . Parts Repaired 1 | . . . . . . . . . . . . . 1 . . . . Time 61 | . . . . . . . . . . . . . 61 . . . . Parts Recycled . | . . . . . . . . . . . . . . . . . . Recycled Matter 96 | . . . . . . . 29 67 . . . . . . . . . Retrieved Matter 96 | . . . . . . . 29 67 . . . . . . . . . Retrieved Components . | . . . . . . . . . . . . . . . . . . Parts Scanalyzed . | . . . . . . . . . . . . . . . . . . Part Schematics Acquired . | . . . . . . . . . . . . . . . . . . Parts Damaged . | . . . . . . . . . . . . . . . . . . Bothacking | -11 -10 -10 -10 -9 -8 -8 -8 -7 -7 -6 -6 -6 -5 -5 -5 -5 -5 ------------ Run | Yrd Mat Min Exi Min Mat Gar Mat Fac Gar Fac Low Low Fac Ext Cet Arc Hub Used RIF Installer 2 | . . . . . . 1 . . 1 . . . . . . . . Alert ID Control 1 | . . . . . . . . . 1 . . . . . . . . Robots Hacked 21 | . . . . . . . . 3 . 4 . . 7 5 . 1 1 Non-combat 9 | . . . . . . . . . . 2 . . 4 1 . 1 1 Combat 12 | . . . . . . . . 3 . 2 . . 3 4 . . . Robot Hacks Applied 26 | . . . . . . . . 4 . 4 . . 10 5 . 2 1 parse_system 3 | . . . . . . . . 1 . . . . 2 . . . . no_distress 3 | . . . . . . . . . . . . . 1 . . 1 1 generate_echo 1 | . . . . . . . . . . . . . 1 . . . . find_chute 1 | . . . . . . . . . . 1 . . . . . . . find_dsf 1 | . . . . . . . . . . . . . 1 . . . . drop_inventory 1 | . . . . . . . . . . . . . . 1 . . . check_alert 1 | . . . . . . . . . . . . . . . . 1 . map_route 1 | . . . . . . . . . . . . . 1 . . . . mark_security 1 | . . . . . . . . . . 1 . . . . . . . reboot_system 2 | . . . . . . . . . . . . . . 2 . . . go_dormant 5 | . . . . . . . . 2 . 2 . . 1 . . . . overwrite_iff 6 | . . . . . . . . 1 . . . . 3 2 . . . Relay Couplers Released 15 | . . . . . . 12 . . 3 . . . . . . . . Machine Destruction 15 | . . . . . . 12 . . 3 . . . . . . . . Attached 4 | . . . . . . . . 2 2 . . . . . . . . Fabnet Peak Effective % . | . . . . . . . . . . . . . . . . . . Robots Rewired . | . . . . . . . . . . . . . . . . . . Allies Hacked . | . . . . . . . . . . . . . . . . . . Hacks Repelled . | . . . . . . . . . . . . . . . . . . Allies | -11 -10 -10 -10 -9 -8 -8 -8 -7 -7 -6 -6 -6 -5 -5 -5 -5 -5 -------- Run | Yrd Mat Min Exi Min Mat Gar Mat Fac Gar Fac Low Low Fac Ext Cet Arc Hub Total Allies 8 | . . . . . . . . 1 . 1 . . 3 3 . . . Largest Group 2 | . . . . . . . . 1 . 1 . . 1 2 . . . Highest-Rated Group 60 | . . . . . . . . 16 . 26 . . 12 60 . . . Highest-Rated Ally 31 | . . . . . . . . 16 . 26 . . 12 31 . . . Total Orders . | . . . . . . . . . . . . . . . . . . Ally Attacks 24 | . . . . . . . . 3 . . . . 14 7 . . . Total Damage 268 | . . . . . . . . 43 . . . . 145 80 . . . Kills 2 | . . . . . . . . 1 . . . . 1 . . . . Allies Corrupted . | . . . . . . . . . . . . . . . . . . Allies Melted . | . . . . . . . . . . . . . . . . . . Intel | -11 -10 -10 -10 -9 -8 -8 -8 -7 -7 -6 -6 -6 -5 -5 -5 -5 -5 ------- Run | Yrd Mat Min Exi Min Mat Gar Mat Fac Gar Fac Low Low Fac Ext Cet Arc Hub Robot Analysis Total . | . . . . . . . . . . . . . . . . . . Derelict Logs Recovered 3 | . . 1 . . . . . . . . 1 1 . . . . . Drone Launches . | . . . . . . . . . . . . . . . . . . Drone Recoveries . | . . . . . . . . . . . . . . . . . . Exploration | -11 -10 -10 -10 -9 -8 -8 -8 -7 -7 -6 -6 -6 -5 -5 -5 -5 -5 ------------- Run | Yrd Mat Min Exi Min Mat Gar Mat Fac Gar Fac Low Low Fac Ext Cet Arc Hub Turns Passed 5121 | 62 227 25 95 14 543 272 618 556 194 808 113 171 558 621 57 26 161 Spaces Moved 8572 | 56 247 68 254 14 509 774 630 1276 403 1479 388 485 829 811 87 39 223 Core 79 | 20 . . . . . . . . . . . . . 59 . . . Treads 1 | . . . . . . . . . . . . . . 1 . . . Legs 78 | 36 41 . . . . . . . . . . . . 1 . . . Wheels . | . . . . . . . . . . . . . . . . . . Hover 688 | . . . . . . . . . . . . . . 339 87 39 223 Flight 7726 | . 206 68 254 14 509 774 630 1276 403 1479 388 485 829 411 . . . Fastest Speed 26 | 50 37 37 37 37 29 29 29 27 27 26 29 29 27 31 60 60 60 Average Speed 34 | 95 50 37 37 37 29 29 32 31 27 27 29 29 34 55 61 60 60 Slowest Speed 170 | 120 120 37 37 37 37 101 104 107 27 31 29 32 120 170 66 60 60 Overloaded Moves 3 | . . . . . . . . . . . . . 3 . . . . Propulsion Burnouts . | . . . . . . . . . . . . . . . . . . Robots Hopped 73 | . . . . . 8 6 34 11 . 2 . 3 3 6 . . . Cave-ins Triggered . | . . . . . . . . . . . . . . . . . . Exploration Rate (%) 45 | 4 47 16 64 5 39 93 62 33 37 44 62 51 22 87 65 58 22 Regions Visited 17 Branch Regions 9 Pre-discovered Areas 2 | . . 1 . 1 . . . . . . . . . . . . . Known Exits Taken 4 | . . . . . 1 . . 1 . 1 . 1 . . . . . Unknown Exits Taken 11 | 1 1 1 1 1 . . 1 . . . 1 . 1 1 1 1 . Scrap Searched 7 | . . . . . . . . . . . 4 3 . . . . . Spaces Dug 42 | . . . . . 13 . 1 . 1 15 . 5 7 . . . . Terrain Destroyed 152 | . . . . . 26 1 1 . 72 15 . 5 7 25 . . . Melee 28 | . . . . . . . . . 1 15 . 5 7 . . . . Projectile 6 | . . . . . 1 1 1 . 3 . . . . . . . . AOE 118 | . . . . . 25 . . . 68 . . . . 25 . . . Terrain Rammed . | . . . . . . . . . . . . . . . . . . Walls Destroyed . | . . . . . . . . . . . . . . . . . . Machines Disabled . | . . . . . . . . . . . . . . . . . . Actions | -11 -10 -10 -10 -9 -8 -8 -8 -7 -7 -6 -6 -6 -5 -5 -5 -5 -5 --------- Run | Yrd Mat Min Exi Min Mat Gar Mat Fac Gar Fac Low Low Fac Ext Cet Arc Hub Total 10339 | 62 296 67 254 22 885 801 990 1384 455 1838 387 501 1061 956 90 41 249 Wait 1448 | . 5 . . 9 356 . 372 75 19 286 . 3 185 113 4 . 21 Move 8414 | 55 246 67 253 13 494 760 566 1253 401 1474 387 478 822 798 86 38 223 Hop 66 | . . . . . 6 6 29 11 . 2 . 3 3 6 . . . Pick Up 33 | 2 2 . 1 . 7 6 1 2 1 7 . 1 . 3 . . . Fast Attach 55 | 5 5 . . . 2 3 5 6 1 11 . 3 3 10 . . 1 Attach 36 | . 1 . . . 8 4 1 4 3 4 . 1 2 6 . 1 1 Detach 21 | . 3 . . . 4 2 1 1 2 4 . . 1 3 . . . Swap 4 | . . . . . . . . 1 . 2 . . 1 . . . . Drop 44 | . 2 . . . 4 6 2 10 1 15 . 4 . . . . . Fire 106 | . 32 . . . 4 14 6 8 4 9 . 2 19 8 . . . Melee 89 | . . . . . . . 7 13 10 24 . 6 15 9 . 2 3 Ram . | . . . . . . . . . . . . . . . . . . Kick . | . . . . . . . . . . . . . . . . . . Crush . | . . . . . . . . . . . . . . . . . . Escape Stasis 23 | . . . . . . . . . 13 . . . 10 . . . . Rewire . | . . . . . . . . . . . . . . . . . . Trap . | . . . . . . . . . . . . . . . . . . Miscellaneous . | . . . . . . . . . . . . . . . . . . Route ------- -11/Scrapyard -10/Materials (discovered 2 exits: [*Mat] / [*Min]) -10/Mines -10/Exiles (discovered 2 exits: [*Min x2]) -9/Mines -8/Materials (discovered 2 exits: *Fac / Gar) -8/Garrison (discovered 3 exits: *Mat x3) -8/Materials (discovered 2 exits: *Fac x2) -7/Factory (discovered 2 exits: [*Low] / Gar) -7/Garrison -6/Factory (discovered 4 exits: *Fac x2 / *Low x2) -6/Lower Caves -6/Lower Caves -5/Factory (discovered 2 exits: [*Upp] / *Ext) -5/Extension (discovered 3 exits: *Fac x2 / *Cet) -5/Cetus -5/Archives -5/Hub_04(d) (discovered 4 exits: Fac x4) History --------- Turn | Location | Event 7 | -11/Scrapyard | Discovered new exit (range 15) 63 | -11/Scrapyard | Entered Materials 238 | -10/Materials | Discovered new exit (range 8) 282 | -10/Materials | Discovered new exit (range 15) 290 | -10/Materials | Entered Mines 310 | -10/Mines | Learned location of Zion (-7) 311 | -10/Mines | Build established: Mutant 313 | -10/Mines | Deemed a non-threat by the Exiles lab entrance 313 | -10/Mines | Discovered new exit (range 6) 315 | -10/Mines | Entered Exiles 320 | -10/Exiles | Discovered new exit (range 17) 324 | -10/Exiles | Met 8R-AWN 331 | -10/Exiles | Met EX-HEX 344 | -10/Exiles | Met EX-BIN 350 | -10/Exiles | Aligned with FarCom system 350 | -10/Exiles | Given EX-Vault access code 359 | -10/Exiles | Opened EX-Vault 361 | -10/Exiles | Found YOLO Cannon 370 | -10/Exiles | Warned to stay clear of 0b10 Research branches 380 | -10/Exiles | Met EX-DEC 407 | -10/Exiles | Discovered new exit (range 11) 410 | -10/Exiles | Left Exiles lab with YOLO Cannon 410 | -10/Exiles | Entered Mines 411 | -9/Mines | Learned location of Storage (-7) 417 | -9/Mines | Discovered new exit (range 8) 424 | -9/Mines | Entered Materials 424 | -8/Materials | Evolved 4 slots: Propulsion x2, Utility x2 634 | -8/Materials | Discovered new exit (range 17) 723 | -8/Materials | Build established: Scout 911 | -8/Materials | Garrison activated, responded to threat 966 | -8/Materials | Identified exit to Garrison 967 | -8/Materials | Entered Garrison 967 | -8/Garrison | Discovered recently destroyed garrison 1064 | -8/Garrison | Discovered new exit (range 7) 1106 | -8/Garrison | Garrison Relay disabled 1134 | -8/Garrison | Discovered new exit (range 8) 1137 | -8/Garrison | Installed Relay Interface Framework 1147 | -8/Garrison | Garrison Relay disabled 1194 | -8/Garrison | Garrison Relay disabled 1211 | -8/Garrison | Discovered new exit (range 5) 1234 | -8/Garrison | Learned Materials security intel 1239 | -8/Garrison | Entered Materials 1342 | -8/Materials | Build established: Hacker-Sprinter 1734 | -8/Materials | Discovered new exit (range 10) 1785 | -8/Materials | Lost 4 parts (1p2n1w) 1855 | -8/Materials | Discovered new exit (range 6) 1857 | -8/Materials | Entered Factory 1857 | -7/Factory | Evolved 2 slots: Utility x2 1861 | -7/Factory | Identified exit to DSF 2007 | -7/Factory | Build established: Hacker-Mutant 2027 | -7/Factory | Discovered new exit (range 16) 2412 | -7/Factory | Identified exit to Garrison 2413 | -7/Factory | Entered Garrison 2473 | -7/Garrison | Build established: Hacker-Sprinter 2517 | -7/Garrison | Expanded RIF knowledge: Alert ID Control 2531 | -7/Garrison | Garrison Relay disabled 2541 | -7/Garrison | Learned Factory security intel 2549 | -7/Garrison | Discovered new exit (range 12) 2607 | -7/Garrison | Entered Factory 2607 | -6/Factory | Evolved 2 slots: Utility x2 3076 | -6/Factory | Discovered new exit (range 3) 3081 | -6/Factory | Identified exit to Factory 3202 | -6/Factory | Discovered exit to Factory (range 13) 3230 | -6/Factory | Identified exit to Lower Caves 3257 | -6/Factory | Found Prototype Processor 3257 | -6/Factory | Identified Exp. Targeting Computer 3376 | -6/Factory | Spotted B-75 Beast 3415 | -6/Factory | Entered Lower Caves 3440 | -6/Lower Caves | Encountered a Warlord checkpoint 3445 | -6/Lower Caves | Spotted B-75 Beast 3481 | -6/Lower Caves | Learned Factory terminal intel 3523 | -6/Lower Caves | Discovered new exit (range 9) 3528 | -6/Lower Caves | Entered another Lower Caves area 3546 | -6/Lower Caves | Discovered exit to Factory (range 13) 3588 | -6/Lower Caves | Acquired the password to a Derelict Tinkerer's latest research 3593 | -6/Lower Caves | Found Prototype Special Weapon 3593 | -6/Lower Caves | Identified Molecular Deconstructor 3634 | -6/Lower Caves | Learned Factory terminal intel 3640 | -6/Lower Caves | Encountered a Warlord checkpoint 3693 | -6/Lower Caves | Caught by Unaware searching for contraband prototypes 3699 | -6/Lower Caves | Entered Factory 3699 | -5/Factory | Evolved 2 slots: Utility x2 3700 | -5/Factory | Loaded intel: 28 terminal locations 3723 | -5/Factory | Lost 3 parts (1p1n1u) 3793 | -5/Factory | Discovered new exit (range 5) 3939 | -5/Factory | Repaired Broken Remote Datajack 4248 | -5/Factory | Discovered new exit (range 9) 4257 | -5/Factory | Entered Extension 4318 | -5/Extension | Spotted B-75 Beast 4360 | -5/Extension | Rescued a captive Derelict 4368 | -5/Extension | Energy Cycler disabled 4368 | -5/Extension | Rescued a captive Derelict 4368 | -5/Extension | Rescued a captive Derelict 4370 | -5/Extension | Rescued a captive Derelict 4371 | -5/Extension | Rescued a captive Derelict 4371 | -5/Extension | Rescued a captive Derelict 4417 | -5/Extension | Lost 4 allies 4419 | -5/Extension | Lost 7 parts (1p4n1u1w) 4435 | -5/Extension | Core integrity fell below 50% 4479 | -5/Extension | Spotted B-75 Beast 4482 | -5/Extension | Discovered new exit (range 16) 4515 | -5/Extension | Lost 4 parts (2n1u1w) 4555 | -5/Extension | Extracted ID and sensor layout for unrecognized location from A7's data core 4557 | -5/Extension | Search patrols dispatched 4808 | -5/Extension | Core integrity fell below 20% 4849 | -5/Extension | Lost 4 parts (1p2n1w) 4856 | -5/Extension | Discovered new exit (range 10) 4857 | -5/Extension | Discovered new exit (range 6) 4878 | -5/Extension | Entered Cetus 4888 | -5/Cetus | Spotted Cetus Guard 4888 | -5/Cetus | Spotted Cetus Guard 4889 | -5/Cetus | Build established: Wizard-Mutant 4889 | -5/Cetus | Spotted Cetus Guard 4898 | -5/Cetus | Spotted Cetus Guard 4926 | -5/Cetus | Discovered new exit (range 16) 4935 | -5/Cetus | Entered Archives 4952 | -5/Archives | Discovered new exit (range 16) 4961 | -5/Archives | Entered Hub_04(d) 4983 | -5/Hub_04(d) | Lost 3 parts (3u) 5014 | -5/Hub_04(d) | Identified exit to Factory 5122 | -5/Hub_04(d) | Core destroyed Last Messages --------------- ALERT: Suspicious activity at Terminal H006. Dispatching Investigation squad. ALERT: Suspicious intruders detected, dispatching Cutter reinforcements to area. K-01 Serf collects debris. ALERT: Hostiles spotted, dispatching reinforcements to Terminal H010. Acquired Imp. Targeting Computer. W-25 Informer sends out distress signal. Sneak attack on A-15 Conveyor. Jacked A-15 Conveyor... >>find_fabricator No accessible Fabricator found in memory. W-25 Informer sends out distress signal. Sneak attack on A-15 Conveyor. Jacked A-15 Conveyor... >>find_dsf No accessible DSF found in memory. Slammed into A-15 Conveyor. Destabilizing: Core damaged (-20). Map ----- +----------------------------------------------------+ | ?????????????????????????????????????????????????? | | ?????????????????????????????????????????????????? | | ?????????????????????????????????????????????????? | | ?????????????????????????????????????????????????? | | ?????????????????????????????????????????????????? | | ?????????????????????????????????????????????????? | | ?????????????????????????????????????????????????? | | ?????????????????????????????????????????????????? | | ?????????????????????????????????????????????????? | | ?????????????????????????????????????????????????? | | ?????????????????? ???????????????????????????? | | ?????????????????? ???????????????????????????? | | ?????????????????? ??????????????????########## | | ?????????????????? ????????########### [ # | | ??????????????????# #????????# # # | | ??????????????????# #????##### """"" +! # | | ??????????????????# +????# # ""T"" # # | | ?????????????????? #????# # # """" # | | ??????????????????# #????# # """ """ # """" # | | ??????????????????# #????# # # """" # | | ??????????????????# #????# # """ """ # """" # | | ???????????????w??# #????# # # # | | ??????????????????#w #????# #####w#########+#### | | ?????????????????## g##???# | | ?????????????""" # ##### | | ???????????# Y ] gAg@A R | | ?????????????""" # ######/######+########### | | ?????????????????# #?# # ????????# | | ?????????????????##+##### + ??????# | | ?????????????????# ## # ????# | | ?????????????????# ## # #??# | | ?????????????????# ## # #??# | | ?????????????????# ## """" !# #??# | | ????